[Event "Turkish Second League 2019"]
[Site "Konya"]
[Date "2019.07.22"]
[Round "1"]
[White "Tum, Hakan"]
[Black "Buyukasik, Diyap"]
[Result "0-1"]
[ECO "A47"]
[WhiteElo "1803"]
[BlackElo "2268"]
[Annotator "NA"]
[PlyCount "91"]
[EventDate "2019.07.22"]
[EventType "team-tourn"]
[EventCountry "TUR"]
[SourceTitle "playchess.com"]
[Source "ChessBase"]
[SourceQuality "1"]
[TimeControl "5400+30"]

1. d4 {[%emt 0:00:30]} Nf6 {[%emt 0:00:30]} 2. Nf3 {[%emt 0:00:00]} e6 {[%emt 0:00:30]} 3. e3 {[%emt 0:00:00]} b6 {[%emt 0:03:30]} 4. Bd3 {[%emt 0:00:30]} Bb7 {[%emt 0:01:30]} 5. Nbd2 {[%emt 0:00:30]} g6 {[%emt 0:04:30]} 6. b3 {[%emt 0:02:30]} Bg7 {[%emt 0:00:30]} 7. Bb2 {[%emt 0:00:30]} O-O {[%emt 0:00:30]} 8. O-O {[%emt 0:00:00]} d6 {[%emt 0:02:30]} 9. c4 {[%emt 0:06:00]} Nbd7 {[%emt 0:01:30]} 10. Qc2 {[%emt 0:01:30]} Qe7 {[%emt 0:04:30]} 11. Ne4 {[%emt 0:37:30]} e5 {[%emt 0:11:30]} 12. dxe5 {[%emt 0:07:30]} dxe5 {[%emt 0:01:30]} 13. Nxf6+ {[%emt 0:00:30]} Bxf6 {[%emt 0:01:30]} 14. Be4 {[%emt 0:00:00]} c6 {[%emt 0:02:30]} 15. Qc3 {[%emt 0:03:00]} Bg7 {[%emt 0:08:30]} 16. Rad1 {[%emt 0:05:30]} Rae8 {[%emt 0:13:30]} 17. Rd2 {[%emt 0:02:30]} f5 {[%emt 0:02:30]} 18. Rfd1 {[%emt 0:01:30]} Nc5 {[%emt 0:03:30]} 19. Bc2 {[%emt 0:00:00]} Rf7 {[%emt 0:02:30]} 20. b4 {[%emt 0:12:13]} Ne4 {[%emt 0:08:30]} 21. Bxe4 {[%emt 0:01:47]} fxe4 {[%emt 0:00:30]} 22. Ne1 {[%emt 0:01:32]} Bc8 {[%emt 0:00:30]} 23. Rd6 {[%emt 0:01:18]} Bf8 {[%emt 0:03:30]} 24. c5 {[%emt 0:05:13]} bxc5 {[%emt 0:04:11]} 25. bxc5 {[%emt 0:00:20]} Bg4 {[%emt 0:00:19]} 26. Rc1 {[%emt 0:02:50]} Qb7 {[%emt 0:03:09]} 27. Rd2 {[%emt 0:00:51]} Rd7 {[%emt 0:03:55]} 28. Qc4+ {[%emt 0:01:35]} Be6 {[%emt 0:00:22]} 29. Rxd7 {[%emt 0:01:12]} Qxd7 {[%emt 0:00:38]} 30. Qxe4 {[%emt 0:00:08]} Bxa2 {[%emt 0:01:18]} 31. Qa4 {[%emt 0:01:59]} Bd5 {[%emt 0:02:19]} 32. e4 {[%emt 0:00:02]} Bf7 {[%emt 0:02:25]} 33. Nf3 {[%emt 0:00:01]} Bg7 {[%emt 0:02:04]} 34. Rd1 {[%emt 0:00:01]} Qb7 {[%emt 0:00:54]} 35. Qa1 {[%emt 0:00:02]} Qe7 {[%emt 0:02:43]} 36. Rd6 {[%emt 0:00:30]} g5 {[%emt 0:00:02]} 37. Rxc6 {[%emt 0:01:10]} g4 {[%emt 0:00:18]} 38. Nd2 {[%emt 0:00:50]} Rd8 {[%emt 0:00:42]} 39. Nf1 {[%emt 0:00:23]} Qb7 {[%emt 0:01:24]} 40. Ra6 {[%emt 0:00:49]} Qxe4 {[%emt 0:00:30]} 41. Ra4 {[%emt 0:00:30]} Qe2 {[%emt 0:00:30]} 42. Ne3 {[%emt 0:00:30]} Bb3 {[%emt 0:00:57]} 43. Rxg4 {[%emt 0:01:42]} Rd1+ {[%emt 0:00:38]} 44. Qxd1 {[%emt 0:00:30]} Bxd1 {[%emt 0:00:00]} 45. Bc3 {[%emt 0:01:13]} Qxg4 {[%emt 0:00:00]} 46. f3 {[%emt 0:00:00]} 0-1

[Event "Turkish Second League 2019"]
[Site "Konya"]
[Date "2019.07.22"]
[Round "1"]
[White "Turkmen, Yusuf Cagan"]
[Black "Altundal, Arda"]
[Result "1-0"]
[ECO "D02"]
[WhiteElo "1796"]
[BlackElo "1707"]
[Annotator "NA"]
[PlyCount "76"]
[EventDate "2019.07.22"]
[EventType "team-tourn"]
[EventCountry "TUR"]
[SourceTitle "playchess.com"]
[Source "ChessBase"]
[SourceQuality "1"]
[TimeControl "5400+30"]

1. d4 {[%emt 0:00:30]} Nf6 {[%emt 0:00:30]} 2. Bf4 {[%emt 0:01:30]} e6 {[%emt 0:00:00]} 3. e3 {[%emt 0:00:30]} d5 {[%emt 0:01:00]} 4. Nd2 {[%emt 0:02:30]} c5 {[%emt 0:00:30]} 5. c3 {[%emt 0:00:30]} Nc6 {[%emt 0:00:30]} 6. Ngf3 {[%emt 0:11:30]} Bd6 {[%emt 0:00:30]} 7. Bg3 {[%emt 0:00:30]} O-O {[%emt 0:00:30]} 8. Bd3 {[%emt 0:01:30]} h6 {[%emt 0:02:30]} 9. Ne5 {[%emt 0:02:30]} Bxe5 {[%emt 0:01:30]} 10. dxe5 {[%emt 0:00:30]} Nd7 {[%emt 0:00:00]} 11. f4 {[%emt 0:01:30]} c4 {[%emt 0:06:00]} 12. Bc2 {[%emt 0:12:30]} Qb6 {[%emt 0:00:30]} 13. Rb1 {[%emt 0:02:30]} Qxe3+ {[%emt 0:00:30]} 14. Qe2 {[%emt 0:00:30]} Qxe2+ {[%emt 0:03:30]} 15. Kxe2 {[%emt 0:00:00]} b5 {[%emt 0:01:30]} 16. Bf2 {[%emt 0:10:00]} Ba6 {[%emt 0:10:30]} 17. Rhd1 {[%emt 0:01:30]} b4 {[%emt 0:13:30]} 18. Ba4 {[%emt 0:10:30]} Rfc8 {[%emt 0:05:30]} 19. Ne4 {[%emt 0:07:30]} Nb6 {[%emt 0:06:30]} 20. Bxb6 {[%emt 0:03:30]} axb6 {[%emt 0:00:30]} 21. Nd6 {[%emt 0:01:30]} Rc7 {[%emt 0:00:30]} 22. Bxc6 {[%emt 0:00:30]} Rxc6 {[%emt 0:00:30]} 23. Ke3 {[%emt 0:00:30]} Bc8 {[%emt 0:39:37]} 24. cxb4 {[%emt 0:07:30]} c3 {[%emt 0:00:08]} 25. Rbc1 {[%emt 0:05:26]} Rxa2 {[%emt 0:01:14]} 26. Rxc3 {[%emt 0:04:20]} Rxc3+ {[%emt 0:00:30]} 27. bxc3 {[%emt 0:00:30]} Bd7 {[%emt 0:00:00]} 28. Rd2 {[%emt 0:00:45]} Ra1 {[%emt 0:00:00]} 29. Kd4 {[%emt 0:01:55]} Ra4 {[%emt 0:02:45]} 30. Rb2 {[%emt 0:00:43]} Kf8 {[%emt 0:01:41]} 31. c4 {[%emt 0:02:00]} Bc6 {[%emt 0:00:26]} 32. Nc8 {[%emt 0:01:53]} b5 {[%emt 0:00:58]} 33. Nb6 {[%emt 0:03:41]} Ra1 {[%emt 0:00:24]} 34. Kc5 {[%emt 0:00:26]} Bb7 {[%emt 0:00:33]} 35. Kxb5 {[%emt 0:01:09]} Ba6+ {[%emt 0:01:54]} 36. Kc6 {[%emt 0:00:30]} Bxc4 {[%emt 0:00:16]} 37. b5 {[%emt 0:02:18]} Rc1 {[%emt 0:00:30]} 38. Kd7 {[%emt 0:00:45]} d4 {[%emt 0:00:26]} 1-0

[Event "Turkish Second League 2019"]
[Site "Konya"]
[Date "2019.07.22"]
[Round "1"]
[White "Hatirli, Ugur Can"]
[Black "Donmez, Taha Mert"]
[Result "1-0"]
[ECO "E62"]
[WhiteElo "1792"]
[BlackElo "1961"]
[Annotator "NA"]
[PlyCount "93"]
[EventDate "2019.07.22"]
[EventType "team-tourn"]
[EventCountry "TUR"]
[SourceTitle "playchess.com"]
[Source "ChessBase"]
[SourceQuality "1"]
[TimeControl "5400+30"]

1. Nf3 {[%emt 0:00:30]} g6 {[%emt 0:00:30]} 2. g3 {[%emt 0:00:30]} Bg7 {[%emt 0:00:30]} 3. Bg2 {[%emt 0:00:00]} d6 {[%emt 0:00:30]} 4. O-O {[%emt 0:00:00]} Nf6 {[%emt 0:01:30]} 5. d4 {[%emt 0:00:30]} O-O {[%emt 0:00:30]} 6. c4 {[%emt 0:00:00]} c6 {[%emt 0:00:30]} 7. Nc3 {[%emt 0:00:00]} Bf5 {[%emt 0:00:00]} 8. Ne1 {[%emt 0:03:30]} Na6 {[%emt 0:07:00]} 9. e4 {[%emt 0:00:30]} Be6 {[%emt 0:00:30]} 10. b3 {[%emt 0:02:30]} Qa5 {[%emt 0:08:30]} 11. Bd2 {[%emt 0:00:30]} Qb6 {[%emt 0:13:30]} 12. Nc2 {[%emt 0:02:30]} Rad8 {[%emt 0:09:30]} 13. h3 {[%emt 0:05:30]} d5 {[%emt 0:08:30]} 14. exd5 {[%emt 0:02:30]} cxd5 {[%emt 0:01:30]} 15. c5 {[%emt 0:00:30]} Qc6 {[%emt 0:01:30]} 16. b4 {[%emt 0:01:30]} Qc8 {[%emt 0:00:30]} 17. Kh2 {[%emt 0:00:30]} Bf5 {[%emt 0:04:30]} 18. b5 {[%emt 0:01:30]} Nc7 {[%emt 0:00:30]} 19. Bg5 {[%emt 0:03:30]} Ne6 {[%emt 0:10:30]} 20. Bxf6 {[%emt 0:05:30]} Bxf6 {[%emt 0:02:30]} 21. Nxd5 {[%emt 0:00:00]} Bxc2 {[%emt 0:01:30]} 22. Qxc2 {[%emt 0:00:00]} Rxd5 {[%emt 0:04:30]} 23. Bxd5 {[%emt 0:00:30]} Nxd4 {[%emt 0:00:30]} 24. Qc4 {[%emt 0:00:30]} e6 {[%emt 0:01:30]} 25. Bg2 {[%emt 0:00:30]} h5 {[%emt 0:02:37]} 26. Rad1 {[%emt 0:01:30]} Rd8 {[%emt 0:01:53]} 27. Rd3 {[%emt 0:03:30]} h4 {[%emt 0:03:31]} 28. Rfd1 {[%emt 0:00:30]} hxg3+ {[%emt 0:00:59]} 29. fxg3 {[%emt 0:00:00]} e5 {[%emt 0:00:00]} 30. Rf1 {[%emt 0:00:00]} Kg7 {[%emt 0:00:59]} 31. Be4 {[%emt 0:02:30]} Rh8 {[%emt 0:01:52]} 32. Bg2 {[%emt 0:01:30]} Rd8 {[%emt 0:05:12]} 33. Rdd1 {[%emt 0:00:30]} Qc7 {[%emt 0:02:32]} 34. a4 {[%emt 0:01:30]} Rc8 {[%emt 0:01:01]} 35. Qd5 {[%emt 0:04:30]} Nf5 {[%emt 0:02:10]} 36. Qe4 {[%emt 0:19:30]} Qxc5 {[%emt 0:01:27]} 37. Rd3 {[%emt 0:16:30]} Qc4 {[%emt 0:01:21]} 38. Rd7 {[%emt 0:03:30]} Qxe4 {[%emt 0:00:55]} 39. Bxe4 {[%emt 0:00:30]} Nd4 {[%emt 0:00:29]} 40. Rxb7 {[%emt 0:00:30]} Rc3 {[%emt 0:01:07]} 41. Rf2 {[%emt 0:00:30]} Ne6 {[%emt 0:00:51]} 42. Bd5 {[%emt 0:00:30]} Nd8 {[%emt 0:00:11]} 43. Rxa7 {[%emt 0:00:00]} Rd3 {[%emt 0:00:19]} 44. Ba2 {[%emt 0:01:00]} e4 {[%emt 0:00:44]} 45. Re2 {[%emt 0:00:00]} e3 {[%emt 0:00:19]} 46. Rc7 {[%emt 0:01:00]} Bd4 {[%emt 0:00:54]} 47. Rd7 {[%emt 0:00:30]} 1-0

[Event "Turkish Second League 2019"]
[Site "Konya"]
[Date "2019.07.22"]
[Round "1"]
[White "Yassibag, Ipek Asli"]
[Black "Demirtas, Hafize"]
[Result "1-0"]
[ECO "B22"]
[WhiteElo "1778"]
[BlackElo "1893"]
[Annotator "NA"]
[PlyCount "88"]
[EventDate "2019.07.22"]
[EventType "team-tourn"]
[EventCountry "TUR"]
[SourceTitle "playchess.com"]
[Source "ChessBase"]
[SourceQuality "1"]
[TimeControl "5400+30"]

1. e4 {[%emt 0:00:30]} c5 {[%emt 0:00:30]} 2. d4 {[%emt 0:00:30]} cxd4 {[%emt 0:00:00]} 3. c3 {[%emt 0:00:00]} Nf6 {[%emt 0:00:00]} 4. e5 {[%emt 0:02:00]} Nd5 {[%emt 0:00:30]} 5. cxd4 {[%emt 0:03:30]} e6 {[%emt 0:05:30]} 6. Nc3 {[%emt 0:01:30]} d6 {[%emt 0:00:00]} 7. Nf3 {[%emt 0:08:30]} Nc6 {[%emt 0:02:00]} 8. Bb5 {[%emt 0:06:30]} Nxc3 {[%emt 0:10:30]} 9. bxc3 {[%emt 0:01:30]} Bd7 {[%emt 0:03:30]} 10. exd6 {[%emt 0:04:30]} Bxd6 {[%emt 0:02:30]} 11. O-O {[%emt 0:08:30]} O-O {[%emt 0:07:30]} 12. Bd3 {[%emt 0:02:30]} f5 {[%emt 0:05:30]} 13. Re1 {[%emt 0:03:30]} Qc7 {[%emt 0:07:30]} 14. c4 {[%emt 0:10:30]} Nb4 {[%emt 0:09:30]} 15. c5 {[%emt 0:04:30]} Be7 {[%emt 0:11:30]} 16. Bc4 {[%emt 0:00:30]} Bf6 {[%emt 0:01:30]} 17. Bxe6+ {[%emt 0:02:30]} Bxe6 {[%emt 0:00:30]} 18. Rxe6 {[%emt 0:00:00]} Rad8 {[%emt 0:04:30]} 19. Bg5 {[%emt 0:05:00]} Bxg5 {[%emt 0:06:30]} 20. Nxg5 {[%emt 0:00:30]} h6 {[%emt 0:00:30]} 21. Qb3 {[%emt 0:02:30]} Nd5 {[%emt 0:00:30]} 22. Re5 {[%emt 0:01:30]} hxg5 {[%emt 0:01:10]} 23. Rxd5 {[%emt 0:00:30]} Kh7 {[%emt 0:02:43]} 24. Re1 {[%emt 0:03:30]} Qa5 {[%emt 0:03:40]} 25. Rf1 {[%emt 0:06:30]} Qc7 {[%emt 0:09:26]} 26. Rxd8 {[%emt 0:01:30]} Rxd8 {[%emt 0:00:35]} 27. Qe3 {[%emt 0:01:31]} Qf7 {[%emt 0:03:18]} 28. a3 {[%emt 0:01:43]} g4 {[%emt 0:02:04]} 29. Rd1 {[%emt 0:00:30]} Re8 {[%emt 0:00:28]} 30. Qd3 {[%emt 0:00:35]} Qd5 {[%emt 0:00:19]} 31. f3 {[%emt 0:05:06]} gxf3 {[%emt 0:00:24]} 32. Qxf3 {[%emt 0:00:54]} Re4 {[%emt 0:00:32]} 33. h3 {[%emt 0:02:21]} g6 {[%emt 0:00:15]} 34. Qf2 {[%emt 0:02:00]} Kg7 {[%emt 0:00:23]} 35. Kh1 {[%emt 0:01:03]} Qb3 {[%emt 0:00:28]} 36. Ra1 {[%emt 0:04:37]} Qd3 {[%emt 0:00:23]} 37. Qb2 {[%emt 0:02:02]} Qxd4 {[%emt 0:00:41]} 38. Qxb7+ {[%emt 0:02:21]} Kh6 {[%emt 0:00:06]} 39. Rc1 {[%emt 0:00:01]} Qd2 {[%emt 0:00:23]} 40. Qb1 {[%emt 0:00:39]} Re2 {[%emt 0:02:00]} 41. Rg1 {[%emt 0:00:08]} Qd5 {[%emt 0:00:10]} 42. Qc1+ {[%emt 0:01:09]} g5 {[%emt 0:00:04]} 43. c6 {[%emt 0:00:07]} Re6 {[%emt 0:00:45]} 44. c7 {[%emt 0:00:17]} Re5 {[%emt 0:00:53]} 1-0

[Event "Turkish Second League 2019"]
[Site "Konya"]
[Date "2019.07.22"]
[Round "1"]
[White "Karatiken, Seray"]
[Black "Kara, Gulce Nehir"]
[Result "0-1"]
[ECO "E91"]
[WhiteElo "1764"]
[BlackElo "1767"]
[Annotator "NA"]
[PlyCount "110"]
[EventDate "2019.07.22"]
[EventType "team-tourn"]
[EventCountry "TUR"]
[SourceTitle "playchess.com"]
[Source "ChessBase"]
[SourceQuality "1"]
[TimeControl "5400+30"]

1. d4 {[%emt 0:00:30]} Nf6 {[%emt 0:00:30]} 2. Nf3 {[%emt 0:00:30]} g6 {[%emt 0:00:30]} 3. c4 {[%emt 0:00:00]} Bg7 {[%emt 0:00:00]} 4. Nc3 {[%emt 0:00:00]} O-O {[%emt 0:00:00]} 5. e4 {[%emt 0:01:30]} d6 {[%emt 0:00:00]} 6. Be2 {[%emt 0:01:30]} Bg4 {[%emt 0:00:00]} 7. h3 {[%emt 0:01:30]} Bxf3 {[%emt 0:00:30]} 8. Bxf3 {[%emt 0:00:30]} Nfd7 {[%emt 0:04:30]} 9. Be2 {[%emt 0:06:30]} e5 {[%emt 0:08:30]} 10. Be3 {[%emt 0:19:30]} Nc6 {[%emt 0:07:30]} 11. d5 {[%emt 0:06:30]} Nd4 {[%emt 0:07:30]} 12. O-O {[%emt 0:05:30]} a5 {[%emt 0:06:30]} 13. a3 {[%emt 0:08:30]} Nc5 {[%emt 0:04:30]} 14. Bd3 {[%emt 0:05:30]} Ncb3 {[%emt 0:15:30]} 15. Rb1 {[%emt 0:00:30]} f5 {[%emt 0:04:30]} 16. Bc2 {[%emt 0:15:30]} Nxc2 {[%emt 0:07:30]} 17. Qxc2 {[%emt 0:00:00]} Nc5 {[%emt 0:00:30]} 18. f3 {[%emt 0:01:00]} f4 {[%emt 0:04:30]} 19. Bf2 {[%emt 0:00:30]} g5 {[%emt 0:09:59]} 20. b4 {[%emt 0:00:30]} axb4 {[%emt 0:00:59]} 21. axb4 {[%emt 0:00:30]} Nd7 {[%emt 0:00:19]} 22. c5 {[%emt 0:00:30]} h5 {[%emt 0:05:11]} 23. Nb5 {[%emt 0:03:30]} dxc5 {[%emt 0:01:54]} 24. bxc5 {[%emt 0:01:30]} Rf6 {[%emt 0:04:54]} 25. Ra1 {[%emt 0:03:11]} Rb8 {[%emt 0:01:59]} 26. Qc4 {[%emt 0:00:30]} Kh8 {[%emt 0:00:31]} 27. d6 {[%emt 0:03:56]} c6 {[%emt 0:01:23]} 28. Nc7 {[%emt 0:00:52]} Rh6 {[%emt 0:03:18]} 29. Qf7 {[%emt 0:02:05]} Nf8 {[%emt 0:00:24]} 30. Qe7 {[%emt 0:01:44]} Bf6 {[%emt 0:00:25]} 31. Qxd8 {[%emt 0:00:25]} Bxd8 {[%emt 0:00:17]} 32. Ra7 {[%emt 0:00:21]} Rh7 {[%emt 0:00:38]} 33. Na8 {[%emt 0:00:28]} b5 {[%emt 0:00:47]} 34. Rxh7+ {[%emt 0:04:13]} Kxh7 {[%emt 0:00:05]} 35. Ra1 {[%emt 0:00:43]} b4 {[%emt 0:00:50]} 36. Nb6 {[%emt 0:00:09]} Bxb6 {[%emt 0:00:42]} 37. cxb6 {[%emt 0:00:05]} Nd7 {[%emt 0:00:15]} 38. Rb1 {[%emt 0:03:24]} c5 {[%emt 0:00:28]} 39. Rc1 {[%emt 0:03:28]} b3 {[%emt 0:00:26]} 40. Bxc5 {[%emt 0:01:32]} b2 {[%emt 0:00:08]} 41. Rb1 {[%emt 0:00:05]} Nxc5 {[%emt 0:00:30]} 42. Rxb2 {[%emt 0:00:00]} Nd7 {[%emt 0:00:20]} 43. b7 {[%emt 0:00:00]} Kg6 {[%emt 0:00:33]} 44. Kf2 {[%emt 0:01:21]} Kf6 {[%emt 0:00:23]} 45. g3 {[%emt 0:00:11]} Ke6 {[%emt 0:00:50]} 46. h4 {[%emt 0:00:43]} g4 {[%emt 0:00:50]} 47. gxf4 {[%emt 0:01:00]} exf4 {[%emt 0:00:04]} 48. Rb5 {[%emt 0:00:00]} Ne5 {[%emt 0:00:29]} 49. fxg4 {[%emt 0:00:55]} hxg4 {[%emt 0:00:05]} 50. d7 {[%emt 0:00:10]} Nxd7 {[%emt 0:00:58]} 51. Rf5 {[%emt 0:00:18]} Ne5 {[%emt 0:00:45]} 52. Kg2 {[%emt 0:00:54]} f3+ {[%emt 0:00:29]} 53. Kf2 {[%emt 0:00:12]} Rxb7 {[%emt 0:00:33]} 54. Rg5 {[%emt 0:00:07]} Rb2+ {[%emt 0:00:00]} 55. Kf1 {[%emt 0:01:16]} Nd3 {[%emt 0:00:21]} 0-1

[Event "Turkish Second League 2019"]
[Site "Konya"]
[Date "2019.07.22"]
[Round "1"]
[White "Ekici, Kaan Muhammed"]
[Black "Ucucu, Salih"]
[Result "1-0"]
[ECO "C60"]
[WhiteElo "1744"]
[BlackElo "1819"]
[Annotator "NA"]
[PlyCount "81"]
[EventDate "2019.07.22"]
[EventType "team-tourn"]
[EventCountry "TUR"]
[SourceTitle "playchess.com"]
[Source "ChessBase"]
[SourceQuality "1"]
[TimeControl "5400+30"]

1. e4 {[%emt 0:00:30]} e5 {[%emt 0:00:30]} 2. Nf3 {[%emt 0:00:30]} Nc6 {[%emt 0:00:00]} 3. Bb5 {[%emt 0:00:00]} g6 {[%emt 0:00:00]} 4. O-O {[%emt 0:01:00]} Bg7 {[%emt 0:00:30]} 5. c3 {[%emt 0:00:00]} Nge7 {[%emt 0:00:30]} 6. d4 {[%emt 0:01:00]} exd4 {[%emt 0:00:00]} 7. cxd4 {[%emt 0:00:30]} a6 {[%emt 0:00:00]} 8. Ba4 {[%emt 0:00:30]} b5 {[%emt 0:01:30]} 9. Bb3 {[%emt 0:00:00]} O-O {[%emt 0:02:30]} 10. Re1 {[%emt 0:10:00]} d6 {[%emt 0:05:30]} 11. a3 {[%emt 0:06:30]} Bg4 {[%emt 0:03:30]} 12. Be3 {[%emt 0:05:30]} d5 {[%emt 0:09:30]} 13. exd5 {[%emt 0:05:30]} Nxd5 {[%emt 0:30:30]} 14. Nc3 {[%emt 0:01:30]} Nxc3 {[%emt 0:09:30]} 15. bxc3 {[%emt 0:00:30]} Na5 {[%emt 0:01:30]} 16. Ba2 {[%emt 0:04:30]} c5 {[%emt 0:04:30]} 17. h3 {[%emt 0:00:30]} Bxf3 {[%emt 0:02:30]} 18. Qxf3 {[%emt 0:00:30]} c4 {[%emt 0:00:30]} 19. Bb1 {[%emt 0:29:30]} Nb3 {[%emt 0:01:30]} 20. Ra2 {[%emt 0:02:30]} Re8 {[%emt 0:05:30]} 21. Rae2 {[%emt 0:09:39]} Ra7 {[%emt 0:17:06]} 22. Bc2 {[%emt 0:11:18]} a5 {[%emt 0:03:14]} 23. Qc6 {[%emt 0:01:33]} Qd7 {[%emt 0:00:25]} 24. Be4 {[%emt 0:01:51]} Re6 {[%emt 0:00:37]} 25. Qd5 {[%emt 0:03:24]} Qxd5 {[%emt 0:00:27]} 26. Bxd5 {[%emt 0:00:51]} Rd6 {[%emt 0:00:17]} 27. Bf4 {[%emt 0:00:03]} Re6 {[%emt 0:00:51]} 28. Bxe6 {[%emt 0:00:55]} fxe6 {[%emt 0:00:30]} 29. Rxe6 {[%emt 0:00:00]} b4 {[%emt 0:00:26]} 30. axb4 {[%emt 0:00:40]} axb4 {[%emt 0:00:03]} 31. cxb4 {[%emt 0:00:41]} Nxd4 {[%emt 0:00:04]} 32. Re7 {[%emt 0:01:22]} Rxe7 {[%emt 0:00:51]} 33. Rxe7 {[%emt 0:00:30]} Bf6 {[%emt 0:00:00]} 34. Re4 {[%emt 0:01:11]} c3 {[%emt 0:00:04]} 35. Kf1 {[%emt 0:00:48]} Nb3 {[%emt 0:01:17]} 36. Rc4 {[%emt 0:00:30]} g5 {[%emt 0:00:30]} 37. Be3 {[%emt 0:00:23]} Kf7 {[%emt 0:01:12]} 38. Ke2 {[%emt 0:00:30]} Ke6 {[%emt 0:00:30]} 39. Rc6+ {[%emt 0:00:41]} Kf5 {[%emt 0:00:14]} 40. Rxf6+ {[%emt 0:00:53]} Kxf6 {[%emt 0:00:30]} 41. Kd3 {[%emt 0:00:00]} 1-0

[Event "Turkish Second League 2019"]
[Site "Konya"]
[Date "2019.07.22"]
[Round "1"]
[White "Zuberoglu, Ibrahim Berk"]
[Black "Isik, Burak Alp"]
[Result "1-0"]
[ECO "E06"]
[WhiteElo "1737"]
[BlackElo "1599"]
[Annotator "NA"]
[PlyCount "51"]
[EventDate "2019.07.22"]
[EventType "team-tourn"]
[EventCountry "TUR"]
[SourceTitle "playchess.com"]
[Source "ChessBase"]
[SourceQuality "1"]
[TimeControl "5400+30"]

1. Nf3 {[%emt 0:00:30]} d5 {[%emt 0:00:30]} 2. c4 {[%emt 0:00:00]} e6 {[%emt 0:00:30]} 3. g3 {[%emt 0:00:00]} Nf6 {[%emt 0:00:00]} 4. Bg2 {[%emt 0:00:30]} Be7 {[%emt 0:02:00]} 5. O-O {[%emt 0:00:30]} O-O {[%emt 0:00:30]} 6. d4 {[%emt 0:00:30]} c6 {[%emt 0:00:30]} 7. Qc2 {[%emt 0:01:30]} b6 {[%emt 0:12:30]} 8. Nbd2 {[%emt 0:08:30]} Bb7 {[%emt 0:05:30]} 9. e4 {[%emt 0:07:30]} h6 {[%emt 0:14:30]} 10. e5 {[%emt 0:09:30]} Nh7 {[%emt 0:00:30]} 11. h4 {[%emt 0:02:30]} Na6 {[%emt 0:17:30]} 12. a3 {[%emt 0:07:30]} Nc7 {[%emt 0:12:30]} 13. Re1 {[%emt 0:09:30]} c5 {[%emt 0:04:30]} 14. dxc5 {[%emt 0:16:30]} bxc5 {[%emt 0:01:30]} 15. Nb3 {[%emt 0:05:30]} dxc4 {[%emt 0:09:04]} 16. Na5 {[%emt 0:02:30]} Bd5 {[%emt 0:04:10]} 17. Nxc4 {[%emt 0:08:06]} Bxc4 {[%emt 0:05:29]} 18. Qxc4 {[%emt 0:01:06]} Qd5 {[%emt 0:00:06]} 19. Qc2 {[%emt 0:04:46]} Rab8 {[%emt 0:02:17]} 20. Ng5 {[%emt 0:01:00]} hxg5 {[%emt 0:01:19]} 21. Bxd5 {[%emt 0:00:30]} Nxd5 {[%emt 0:00:51]} 22. hxg5 {[%emt 0:01:18]} Nxg5 {[%emt 0:01:59]} 23. Kg2 {[%emt 0:01:43]} g6 {[%emt 0:00:54]} 24. Qa4 {[%emt 0:04:59]} Kg7 {[%emt 0:01:25]} 25. Rh1 {[%emt 0:01:05]} Rb7 {[%emt 0:01:18]} 26. Qh4 {[%emt 0:01:01]} 1-0

[Event "Turkish Second League 2019"]
[Site "Konya"]
[Date "2019.07.22"]
[Round "1"]
[White "Sekerci, Erdogan"]
[Black "Caner, Resul"]
[Result "1-0"]
[ECO "C01"]
[WhiteElo "1665"]
[BlackElo "1921"]
[Annotator "NA"]
[PlyCount "127"]
[EventDate "2019.07.22"]
[EventType "team-tourn"]
[EventCountry "TUR"]
[SourceTitle "playchess.com"]
[Source "ChessBase"]
[SourceQuality "1"]
[TimeControl "5400+30"]

1. e4 {[%emt 0:00:30]} e6 {[%emt 0:00:30]} 2. Nf3 {[%emt 0:01:30]} d5 {[%emt 0:00:00]} 3. exd5 {[%emt 0:00:30]} exd5 {[%emt 0:00:00]} 4. d4 {[%emt 0:00:30]} Bd6 {[%emt 0:00:00]} 5. h3 {[%emt 0:01:30]} Ne7 {[%emt 0:00:00]} 6. Bd3 {[%emt 0:00:30]} Nbc6 {[%emt 0:00:30]} 7. a3 {[%emt 0:02:30]} O-O {[%emt 0:04:30]} 8. Be3 {[%emt 0:03:30]} Nf5 {[%emt 0:14:30]} 9. Bxf5 {[%emt 0:06:30]} Bxf5 {[%emt 0:00:00]} 10. Nbd2 {[%emt 0:00:30]} Qf6 {[%emt 0:06:00]} 11. O-O {[%emt 0:03:30]} Rfe8 {[%emt 0:08:30]} 12. Re1 {[%emt 0:07:30]} Be6 {[%emt 0:04:30]} 13. c3 {[%emt 0:07:30]} h6 {[%emt 0:02:30]} 14. Nh2 {[%emt 0:00:30]} Qg6 {[%emt 0:11:30]} 15. Kh1 {[%emt 0:11:30]} Ne7 {[%emt 0:06:30]} 16. Ndf3 {[%emt 0:05:30]} Nf5 {[%emt 0:03:30]} 17. Qc2 {[%emt 0:03:30]} Qh5 {[%emt 0:05:30]} 18. Ne5 {[%emt 0:04:30]} f6 {[%emt 0:04:30]} 19. Nd3 {[%emt 0:01:30]} Nxe3 {[%emt 0:04:30]} 20. Rxe3 {[%emt 0:01:30]} Qg6 {[%emt 0:01:30]} 21. Nf3 {[%emt 0:04:30]} Qh5 {[%emt 0:06:58]} 22. Rae1 {[%emt 0:06:30]} Bf5 {[%emt 0:00:22]} 23. Rxe8+ {[%emt 0:02:30]} Rxe8 {[%emt 0:00:01]} 24. Rxe8+ {[%emt 0:00:30]} Qxe8 {[%emt 0:00:02]} 25. Qd2 {[%emt 0:00:00]} Qb5 {[%emt 0:01:22]} 26. Nfe1 {[%emt 0:02:00]} a5 {[%emt 0:01:17]} 27. g4 {[%emt 0:00:30]} Be4+ {[%emt 0:00:58]} 28. f3 {[%emt 0:01:30]} Bg6 {[%emt 0:00:42]} 29. Kg2 {[%emt 0:00:00]} b6 {[%emt 0:00:23]} 30. Qe2 {[%emt 0:02:48]} a4 {[%emt 0:00:47]} 31. h4 {[%emt 0:03:10]} Qd7 {[%emt 0:02:42]} 32. h5 {[%emt 0:01:19]} Bf7 {[%emt 0:00:30]} 33. f4 {[%emt 0:01:29]} c5 {[%emt 0:01:48]} 34. f5 {[%emt 0:01:06]} Qc7 {[%emt 0:01:42]} 35. Nf3 {[%emt 0:01:18]} Kf8 {[%emt 0:01:42]} 36. Qd2 {[%emt 0:01:21]} Be8 {[%emt 0:00:43]} 37. Qe3 {[%emt 0:00:30]} Bb5 {[%emt 0:01:37]} 38. Nh4 {[%emt 0:01:26]} Be8 {[%emt 0:03:01]} 39. Ng6+ {[%emt 0:00:02]} Bxg6 {[%emt 0:00:23]} 40. hxg6 {[%emt 0:00:02]} Qe7 {[%emt 0:00:00]} 41. Qxe7+ {[%emt 0:00:53]} Kxe7 {[%emt 0:00:00]} 42. dxc5 {[%emt 0:00:26]} bxc5 {[%emt 0:01:39]} 43. Kf3 {[%emt 0:00:45]} Kd7 {[%emt 0:00:16]} 44. Ke3 {[%emt 0:01:51]} Kc6 {[%emt 0:00:30]} 45. Nf2 {[%emt 0:00:14]} Bg3 {[%emt 0:01:01]} 46. Nd3 {[%emt 0:00:46]} Kb5 {[%emt 0:00:41]} 47. Kd2 {[%emt 0:01:57]} Kc4 {[%emt 0:00:41]} 48. Kc2 {[%emt 0:00:22]} d4 {[%emt 0:00:59]} 49. Nc1 {[%emt 0:01:22]} Bc7 {[%emt 0:00:50]} 50. Nd3 {[%emt 0:01:57]} Kd5 {[%emt 0:00:29]} 51. Nf2 {[%emt 0:01:24]} Bg3 {[%emt 0:00:40]} 52. Nh3 {[%emt 0:01:18]} Kc4 {[%emt 0:00:34]} 53. Ng1 {[%emt 0:02:46]} d3+ {[%emt 0:00:20]} 54. Kd1 {[%emt 0:01:04]} Kb3 {[%emt 0:00:19]} 55. Nf3 {[%emt 0:00:56]} Kxb2 {[%emt 0:00:48]} 56. Nd2 {[%emt 0:00:39]} Bh4 {[%emt 0:01:02]} 57. Ne4 {[%emt 0:01:18]} Kxa3 {[%emt 0:00:56]} 58. Nxc5 {[%emt 0:01:20]} Bf2 {[%emt 0:00:02]} 59. Nxd3 {[%emt 0:00:00]} Bb6 {[%emt 0:00:40]} 60. Kc2 {[%emt 0:00:00]} Bc7 {[%emt 0:00:17]} 61. Nc5 {[%emt 0:00:05]} Bd6 {[%emt 0:01:09]} 62. Ne6 {[%emt 0:00:10]} Ka2 {[%emt 0:00:11]} 63. Nxg7 {[%emt 0:00:12]} a3 {[%emt 0:00:47]} 64. Ne6 {[%emt 0:00:08]} 1-0